fUST/lending_fUST_20260315
["ID","MTS","AMOUNT","RATE_DAILY","PERIOD"]
[408369849,1773511838049,-500.0,6.889e-05,2]
[408369851,1773511838058,-500.0,6.889e-05,2]
[408369853,1773511838068,-30094.58561552,6.89e-05,2]
[408369855,1773511838079,-1050.65667855,6.9e-05,2]
[408369857,1773511838089,-29920.0,6.9e-05,2]
[408369859,1773511838099,-17547.72015293,6.91e-05,2]
[408369861,1773511838108,-5249.10521151,6.91e-05,2]
[408369864,1773511838132,-115770.27575247,6.91e-05,2]
[408369896,1773511840473,-290.03485274,6.91e-05,2]
[408369914,1773511843102,-94466.41794251,6.91e-05,2]
[408369915,1773511843112,-445.33377974,6.911e-05,7]
[408369916,1773511843122,-628.79798273,6.953e-05,2]
[408369917,1773511843132,-500.0,6.953e-05,2]
[408369918,1773511843141,-500.0,6.953e-05,2]
[408369919,1773511843150,-500.0,6.953e-05,2]
[408369920,1773511843160,-500.0,6.953e-05,2]
[408369921,1773511843170,-500.0,6.953e-05,2]
[408369922,1773511843179,-641.6399779,6.953e-05,2]
[408369923,1773511843190,-500.0,6.953e-05,2]
[408369924,1773511843199,-500.0,6.953e-05,2]
[408369925,1773511843209,-500.0,6.953e-05,2]
[408369926,1773511843218,-579.39799153,6.953e-05,2]
[408369927,1773511843228,-500.0,6.953e-05,2]
[408369928,1773511843238,-500.0,6.953e-05,2]
[408369929,1773511843247,-500.0,6.953e-05,2]
[408369930,1773511843257,-500.0,6.953e-05,2]
[408369931,1773511843267,-500.0,6.953e-05,2]
[408369932,1773511843279,-420.0,6.965e-05,2]
[408369933,1773511843292,-5117.9009638,6.972e-05,2]
[408369935,1773511843302,-48015.4847538,6.973e-05,2]
[408369937,1773511843311,-1033.4144193,6.973e-05,2]
[408369939,1773511843322,-2331.69908906,7.012e-05,2]
[408369941,1773511843332,-600.0,7.027e-05,2]
[408369942,1773511843342,-231.6770731,7.09e-05,2]
[408369944,1773511843351,-340.81571084,7.195e-05,2]
[408369946,1773511843363,-157.72238033,7.195e-05,2]
[408369948,1773511843372,-630.8895213,7.195e-05,2]
[408369950,1773511843382,-1419.50142293,7.195e-05,2]
[408369951,1773511843392,-2523.55808521,7.195e-05,2]
[408369952,1773511843402,-250.0,7.31e-05,2]
[408369953,1773511843411,-1706.114722,7.313e-05,2]
[408369955,1773511843421,-8438.47099469,7.415e-05,2]
[408369956,1773511843430,-1000.0,7.501e-05,2]
[408369957,1773511843440,-500.0,7.501e-05,2]
[408369958,1773511843450,-1000.0,7.501e-05,2]
[408369959,1773511843459,-1000.0,7.501e-05,2]
[408369960,1773511843468,-1000.0,7.501e-05,2]
[408369961,1773511843479,-823.09457355,7.501e-05,2]
[408369962,1773511843490,-1000.0,7.501e-05,2]
[408369963,1773511843502,-991.47710023,7.501e-05,2]
[408369964,1773511843514,-1706.114722,7.608e-05,2]
[408369965,1773511843526,-544.0,7.662e-05,2]
[408369966,1773511843535,-720.0,7.729e-05,2]
[408369967,1773511843544,-1706.114722,7.904e-05,2]
[408369968,1773511843554,-17557.14111863,8e-05,2]
[408369969,1773511843563,-200.0,8e-05,7]
[408369970,1773511843573,-2707.21869306,8.018e-05,2]
[408369971,1773511843582,-500.74014982,8.048e-05,2]
[408369972,1773511843591,-1500.0,8.048e-05,2]
[408369973,1773511843601,-500.0,8.153e-05,2]
[408369974,1773511843610,-1141.9580616,8.162e-05,2]
[408369975,1773511843621,-10713.7028027,8.163e-05,2]
[408369976,1773511843632,-1779.55378385,8.196e-05,7]
[408369977,1773511843642,-1706.114722,8.199e-05,2]
[408369978,1773511843651,-429.03353481,8.219e-05,2]
[408369979,1773511843660,-500.0,8.219e-05,2]
[408369980,1773511843670,-489.31944947,8.219e-05,2]
[408369981,1773511843680,-254.8052851,8.427e-05,2]
[408369982,1773511843691,-2390.5502221,8.428e-05,2]
[408369983,1773511843701,-1706.114722,8.495e-05,2]
[408369984,1773511843712,-230.56890456,8.5e-05,7]
[408369985,1773511843724,-864.0,8.502e-05,2]
[408369986,1773511843734,-699.94131743,8.557e-05,2]
[408369987,1773511843744,-501.9022056,8.596e-05,2]
[408369988,1773511843753,-155.0,8.66e-05,2]
[408369989,1773511843762,-169.5647597,8.66e-05,2]
[408369990,1773511843772,-1000.0,8.701e-05,2]
[408369991,1773511843781,-690.0,8.973e-05,2]
[408369992,1773511843790,-166.0,8.973e-05,2]
[408369993,1773511843799,-690.0,8.973e-05,2]
[408369994,1773511843809,-166.0,8.973e-05,2]
[408369995,1773511843819,-351.0,8.973e-05,2]
[408369996,1773511843829,-690.0,8.973e-05,2]
[408369997,1773511843839,-351.0,8.973e-05,2]
[408369998,1773511843848,-351.0,8.973e-05,2]
[408369999,1773511843858,-339.0,8.973e-05,2]
[408370000,1773511843867,-351.0,8.973e-05,2]
[408370001,1773511843876,-339.0,8.973e-05,2]
[408370002,1773511843886,-351.0,8.973e-05,2]
[408370003,1773511843895,-339.0,8.973e-05,2]
[408370004,1773511843904,-351.0,8.973e-05,2]
[408370005,1773511843914,-339.0,8.973e-05,2]
[408370006,1773511843923,-351.0,8.973e-05,2]
[408370007,1773511843933,-690.0,8.973e-05,2]
[408370008,1773511843942,-339.0,8.973e-05,2]
[408370009,1773511843952,-690.0,8.973e-05,2]
[408370010,1773511843961,-351.0,8.973e-05,2]
[408370011,1773511843970,-339.0,8.973e-05,2]
[408370012,1773511843979,-351.0,8.973e-05,2]
[408370013,1773511843988,-339.0,8.973e-05,2]
[408370014,1773511843997,-690.0,8.973e-05,2]
[408370015,1773511844007,-351.0,8.973e-05,2]
[408370016,1773511844016,-339.0,8.973e-05,2]
[408370017,1773511844025,-690.0,8.973e-05,2]
[408370018,1773511844034,-351.0,8.973e-05,2]
[408370019,1773511844044,-690.0,8.973e-05,2]
[408370020,1773511844053,-339.0,8.973e-05,2]
[408370021,1773511844062,-351.0,8.973e-05,2]
[408370022,1773511844072,-690.0,8.973e-05,2]
[408370023,1773511844081,-339.0,8.973e-05,2]
[408370024,1773511844091,-351.0,8.973e-05,2]
[408370025,1773511844100,-401.4557906,8.973e-05,2]
[408370026,1773511844110,-690.0,8.973e-05,2]
[408370027,1773511844120,-351.0,8.973e-05,2]
[408370028,1773511844130,-690.0,8.973e-05,2]
[408370029,1773511844139,-351.0,8.973e-05,2]
[408370030,1773511844148,-204.37378939,8.973e-05,2]
[408370031,1773511844159,-351.0,8.973e-05,2]
[408370032,1773511844168,-351.0,8.973e-05,2]
[408370033,1773511844178,-351.0,8.973e-05,2]
[408370034,1773511844187,-3088.96780555,9.024e-05,2]
[408370035,1773511844196,-1000.0,9.353e-05,2]
[408370036,1773511844205,-162.380719,9.515e-05,2]
[408370037,1773511844216,-500.0,9.515e-05,2]
[408370038,1773511844225,-445.202766,9.515e-05,2]
[408370039,1773511844234,-500.0,9.515e-05,2]
[408370040,1773511844243,-500.0,9.515e-05,2]
[408370041,1773511844252,-500.0,9.515e-05,2]
[408370042,1773511844261,-500.0,9.515e-05,2]
[408370043,1773511844511,-1957.856,9.515e-05,2]
[408370044,1773511844528,-500.0,9.515e-05,2]
[408370045,1773511844537,-500.0,9.515e-05,2]
[408370046,1773511844546,-500.0,9.515e-05,2]
[408370047,1773511844555,-500.0,9.515e-05,2]
[408370048,1773511844565,-500.0,9.515e-05,2]
[408370049,1773511844574,-500.0,9.515e-05,2]
[408370050,1773511844583,-250.0,9.515e-05,2]
[408370051,1773511844592,-500.0,9.515e-05,2]
[408370052,1773511844601,-250.0,9.515e-05,2]
[408370053,1773511844610,-500.0,9.515e-05,2]
[408370054,1773511844619,-250.0,9.515e-05,2]
[408370055,1773511844628,-500.0,9.515e-05,2]
[408370056,1773511844637,-250.0,9.515e-05,2]
[408370057,1773511844646,-500.0,9.515e-05,2]
[408370058,1773511844655,-250.0,9.515e-05,2]
[408370059,1773511844664,-500.0,9.515e-05,2]
[408370060,1773511844674,-250.0,9.515e-05,2]
[408370061,1773511844684,-500.0,9.515e-05,2]
[408370062,1773511844693,-250.0,9.515e-05,2]
[408370063,1773511844703,-500.0,9.515e-05,2]
[408370064,1773511844712,-250.0,9.515e-05,2]
[408370065,1773511844721,-250.0,9.515e-05,2]
[408370066,1773511844730,-250.0,9.515e-05,2]
[408370067,1773511844739,-250.0,9.515e-05,2]
[408370068,1773511844750,-2150.738,9.515e-05,2]
[408370069,1773511844759,-250.0,9.515e-05,2]
[408370070,1773511844768,-5376.845,9.515e-05,2]
[408370071,1773511844778,-250.0,9.515e-05,2]
[408370072,1773511844787,-170.21050385,9.515e-05,2]
[408370073,1773511844796,-537.6845,9.515e-05,2]
[408370074,1773511844805,-156.587,9.515e-05,2]
[408370075,1773511844814,-1510.50526264,9.57e-05,2]
[408370076,1773511844823,-4310.21698546,9.57e-05,2]
[408370077,1773511844836,-1265.57127954,9.57e-05,2]
[408370078,1773511844845,-3054.42084784,9.625e-05,2]
[408370079,1773511844854,-2191.0,9.998e-05,2]
[408370080,1773511844864,-640.0,9.998e-05,2]
[408370081,1773511844880,-437.0,9.998e-05,2]
[408370082,1773511844897,-734.0,9.998e-05,2]
[408370083,1773511844910,-183.0,9.998e-05,2]
[408370084,1773511844920,-834.10194058,0.0001,2]
[408370085,1773511844929,-699.11288256,0.0001,7]
[408370086,1773511844938,-517.70379343,0.0001,2]
[408370087,1773511844948,-3206.65896422,0.0001003,2]
[408370088,1773511844957,-445.202766,0.00010063,2]
[408370089,1773511844966,-1759.23601664,0.00010063,2]
[408370090,1773511844979,-471.07928936,0.00010063,2]
[408370091,1773511844988,-537.6845,0.00010063,2]
[408370092,1773511844998,-278.03398019,0.000102,2]
[408370093,1773511845007,-238.99475859,0.000102,2]
[408370094,1773511845017,-54.91913398,0.000102,2]
[408370103,1773511845968,-117.25092882,0.000102,2]
[408370105,1773511845978,-158.82039658,0.000102,2]
[408370107,1773511845989,-922.27561826,0.0001026,7]
[408370108,1773511845998,-419.0673788,0.00010264,2]
[408370109,1773511846024,-1154.22571744,0.00010264,2]
[408370110,1773511846034,-1000.0,0.00010288,2]
[408370111,1773511846044,-244.0,0.00010288,2]
[408370112,1773511846054,-517.70379343,0.00010382,2]
[408370113,1773511846064,-834.10194058,0.00010422,2]
[408370114,1773511846074,-2150.738,0.00010611,2]
[408370115,1773511846084,-517.70379343,0.00010764,2]
[408370116,1773511846094,-834.10194058,0.00010845,2]
[408370117,1773511846103,-162.380719,0.00010884,2]
[408370118,1773511846113,-3706.09923554,0.00011036,2]
[408370119,1773511846123,-517.70379343,0.00011146,7]
[408370120,1773511846134,-834.10194058,0.00011267,7]
[408370121,1773511846144,-1000.0,0.00011317,2]
[408370122,1773511846154,-492.0,0.00011317,2]
[408370123,1773511846163,-517.70379343,0.00011528,7]
[408370124,1773511846172,-834.10194058,0.0001169,7]
[408370125,1773511846181,-172.1700628,0.00011754,7]
[408370126,1773511846190,-158.82039658,0.00011754,7]
[408370127,1773511846199,-517.70379343,0.0001191,7]
[408370128,1773511846208,-236.37021679,0.00011971,2]
[408370129,1773511846217,-425.04092383,0.00011971,2]
[408370130,1773511846226,-311.45252094,0.00012008,2]
[408370131,1773511846235,-195.80832162,0.00012008,2]
[408370132,1773511846245,-3846.23652204,0.00012042,2]
[408370133,1773511846253,-14328.2939804,0.00012055,2]
[408370134,1773511846263,-834.10194058,0.00012112,7]
[408370135,1773511846272,-1797.0148933,0.00012164,2]
[408370136,1773511846283,-517.70379343,0.00012293,7]
[408370137,1773511846294,-1000.0,0.00012448,2]
[408370138,1773511846304,-791.0,0.00012448,2]
[408370139,1773511846312,-834.10194058,0.00012535,7]
[408370140,1773511846322,-1164.08983119,0.00012601,2]
[408370141,1773511846330,-2069.49303323,0.00012601,2]
[408370142,1773511846340,-3233.58286442,0.00012601,2]
[408370143,1773511846349,-646.71657288,0.00012601,2]
[408370144,1773511846359,-415.67659076,0.00012601,2]
[408370145,1773511846370,-601.41790359,0.00012601,2]
[408370146,1773511846380,-1082.55222647,0.00012601,2]
[408370147,1773511846389,-1922.6127542,0.00012601,2]
[408370148,1773511846399,-339.62422791,0.0001264,2]
[408370149,1773511846409,-1358.49691164,0.0001264,2]
[408370150,1773511846419,-517.70379343,0.00012675,7]
[408370151,1773511846428,-1296.8272717,0.00012733,2]
[408370152,1773511846438,-2305.47070524,0.00012733,2]
[408370153,1773511846448,-745.88758111,0.00012773,2]
[408370154,1773511846458,-304.67717192,0.000129,2]
[408370155,1773511846467,-304.67717188,0.000129,2]
[408370156,1773511846478,-304.67717188,0.000129,2]
[408370157,1773511846488,-171.06244212,0.00012937,2]
[408370158,1773511846497,-295.40307579,0.00012937,2]
[408370159,1773511846507,-834.10194058,0.00012957,7]
[408370160,1773511846516,-640.0,0.00012998,2]
[408370161,1773511846525,-649.95184202,0.00013001,2]
[408370162,1773511846535,-1169.91331563,0.00013001,2]
[408370163,1773511846544,-2079.84589445,0.00013001,2]
[408370164,1773511846554,-3249.75921009,0.00013001,2]
[408370165,1773511846563,-517.70379343,0.00013057,7]
[408370166,1773511846573,-290.8061516,0.00013156,2]
[408370167,1773511846582,-600.0,0.0001322,2]
[408370168,1773511846592,-669.54186369,0.00013305,2]
[408370169,1773511846601,-2675.48928731,0.00013305,2]
[408370170,1773511846611,-172.1700628,0.00013309,7]
[408370171,1773511846620,-158.82039658,0.00013309,7]
[408370172,1773511846630,-834.10194058,0.00013379,7]
[408370173,1773511846639,-720.45959539,0.00013404,2]
[408370174,1773511846649,-290.8061516,0.0001343,2]
[408370175,1773511846659,-517.70379343,0.00013439,14]
[408370176,1773511846668,-672.89131879,0.00013445,2]
[408370177,1773511846679,-1000.0,0.00013693,2]
[408370178,1773511846690,-1000.0,0.00013693,2]
[408370179,1773511846700,-156.0,0.00013699,2]
[408370180,1773511846710,-1000.0,0.00013699,2]
[408370181,1773511846720,-166.006255,0.00013699,2]
[408370182,1773511846730,-500.0,0.00013699,2]
[408370183,1773511846739,-500.0,0.00013699,2]
[408370184,1773511846749,-500.0,0.00013699,2]
[408370185,1773511846759,-500.0,0.00013699,2]
[408370186,1773511846769,-500.0,0.00013699,2]
[408370187,1773511846778,-500.0,0.00013699,2]
[408370188,1773511846795,-500.0,0.00013699,2]
[408370189,1773511846807,-500.0,0.00013699,2]
[408370190,1773511846816,-500.0,0.00013699,2]
[408370191,1773511846826,-500.0,0.00013699,2]
[408370192,1773511846836,-2000.0,0.00013699,7]
[408370193,1773511846845,-1000.0,0.00013699,2]
[408370194,1773511846855,-242.33845967,0.00013759,7]
[408370195,1773511846864,-834.10194058,0.00013802,14]
[408370196,1773511846875,-1181.53822538,0.00013808,2]
[408370197,1773511846884,-517.70379343,0.00013821,14]
[408370198,1773511846895,-151.0,0.000142,2]
[408370199,1773511846905,-834.10194058,0.00014224,14]
[408370200,1773511846914,-214.80716672,0.00014247,2]
[408370201,1773511846926,-1000.0,0.00014247,2]
[408370202,1773511846936,-1000.0,0.00014247,2]
[408370203,1773511846946,-396.52770365,0.00014247,2]
[408370204,1773511846956,-1000.0,0.00014247,2]
[408370205,1773511846967,-1000.0,0.00014247,2]
[408370206,1773511846977,-537.99839472,0.00014247,2]
[408370207,1773511846987,-1000.0,0.00014247,2]
[408370208,1773511846997,-834.10194058,0.00014647,14]
[408370209,1773511847007,-265.56977789,0.00014647,14]
[408370210,1773511847018,-1500.0,0.00014795,2]
[408370211,1773511847028,-645.87406596,0.00014795,2]
[408370212,1773511847038,-1500.0,0.00014795,2]
[408370213,1773511847049,-1500.0,0.00014795,2]
[408370214,1773511847060,-186.25720281,0.00014795,2]
[408370215,1773511847070,-172.1700628,0.00014863,14]
[408370216,1773511847080,-158.82039658,0.00014863,14]
[408370217,1773511847090,-321.0,0.00015,14]
[408370218,1773511847100,-270.83333333,0.00015,2]
[408370219,1773511847110,-151.0,0.00015,2]
[408370220,1773511847120,-4704.9797782,0.00015059,2]
[408370221,1773511847130,-1000.0,0.00015063,2]
[408370222,1773511847141,-1000.0,0.00015063,2]
[408370223,1773511847152,-579.0,0.00015063,2]
[408370224,1773511847162,-192.245018,0.00015068,2]
[408370225,1773511847170,-834.10194058,0.00015069,14]
[408370226,1773511847179,-500.0,0.00015291,2]
[408370227,1773511847188,-2000.0,0.00015342,2]
[408370228,1773511847196,-2000.0,0.00015342,2]
[408370229,1773511847205,-2000.0,0.00015342,2]
[408370230,1773511847214,-834.10194058,0.00015492,14]
[408370231,1773511847224,-5215.47878074,0.00015618,2]
[408370232,1773511847232,-5000.0,0.0001564,2]
[408370233,1773511847241,-186.6606815,0.00015664,2]
[408370234,1773511847250,-197.0,0.00015675,14]
[408370235,1773511847259,-189.0,0.00015675,14]
[408370236,1773511847269,-150.0,0.00015675,14]
[408370237,1773511847278,-150.0,0.00015675,14]
[408370238,1773511847292,-150.0,0.00015675,14]
[408370239,1773511847302,-220.0,0.00015675,14]
[408370240,1773511847312,-185.0,0.00015675,14]
[408370241,1773511847323,-267.0,0.00015675,14]
[408370242,1773511847333,-243.0,0.00015675,14]
[408370243,1773511847343,-160.0,0.00015675,14]
[408370244,1773511847354,-151.0,0.000158,2]
[408370245,1773511847365,-439.933,0.00015806,2]
[408370246,1773511847375,-5000.0,0.00015827,2]
[408370247,1773511847386,-5000.0,0.00015827,2]
[408370248,1773511847396,-5000.0,0.00015827,2]
[408370249,1773511847406,-5000.0,0.00015827,2]
[408370250,1773511847415,-5000.0,0.00015827,2]
[408370251,1773511847425,-1000.0,0.00015839,2]
[408370252,1773511847435,-2500.0,0.0001589,2]
[408370253,1773511847445,-1202.73416609,0.0001589,2]
[408370254,1773511847455,-2500.0,0.0001589,2]
[408370255,1773511847464,-834.10194058,0.00015914,14]
[408370256,1773511847474,-637.0,0.00015998,2]
[408370257,1773511847484,-20000.0,0.00016,2]
[408370258,1773511847494,-1900.219483,0.00016,2]
[408370259,1773511847504,-5204.42004952,0.00016065,2]
[408370260,1773511847514,-3580.0,0.00016233,2]
[408370261,1773511847523,-3580.0,0.00016239,2]
[408370262,1773511847534,-3580.0,0.00016249,2]
[408370263,1773511847545,-3580.0,0.0001631,2]
[408370264,1773511847555,-3580.0,0.00016323,2]
[408370265,1773511847565,-834.10194058,0.00016337,30]
[408370266,1773511847575,-3580.0,0.00016355,2]
[408370267,1773511847585,-1500.0,0.00016387,2]
[408370268,1773511847595,-158.82039658,0.00016417,30]
[408370269,1773511847605,-172.1700628,0.00016417,30]
[408370270,1773511847615,-3580.0,0.00016438,2]
[408370271,1773511847624,-1820.2,0.00016438,2]
[408370272,1773511847634,-200.0,0.00016438,2]
[408370273,1773511847644,-3580.0,0.00016438,2]
[408370274,1773511847654,-150.0,0.00016438,2]
[408370275,1773511847664,-200.0,0.00016438,3]
[408370276,1773511847673,-200.0,0.00016438,3]
[408370277,1773511847683,-200.0,0.00016438,3]
[408370278,1773511847693,-200.0,0.00016438,3]
[408370279,1773511847703,-200.0,0.00016438,3]
[408370280,1773511847714,-200.0,0.00016438,3]
[408370281,1773511847724,-1047.3746733,0.00016438,2]
[408370282,1773511847735,-3000.0,0.00016438,2]
[408370283,1773511847745,-3580.0,0.00016455,2]
[408370284,1773511847755,-3580.0,0.00016471,2]
[408370285,1773511847766,-3580.0,0.00016484,2]
[408370286,1773511847776,-3580.0,0.00016527,2]
[408370287,1773511847787,-1000.0,0.00016569,2]
[408370288,1773511847798,-1000.0,0.00016569,2]
[408370289,1773511847808,-1000.0,0.00016569,2]
[408370290,1773511847817,-3580.0,0.00016588,2]
[408370291,1773511847828,-151.0,0.000166,2]
[408370292,1773511847839,-3580.0,0.00016602,2]
[408370293,1773511847849,-3580.0,0.00016614,2]
[408370294,1773511847860,-156.0,0.00016619,2]
[408370295,1773511847871,-3580.0,0.00016692,2]
[408370296,1773511847880,-3580.0,0.00016698,2]
[408370297,1773511847891,-3580.0,0.00016705,2]
[408370298,1773511847903,-3580.0,0.00016718,2]
[408370299,1773511847914,-3580.0,0.0001672,2]
[408370300,1773511847925,-3580.0,0.00016732,2]
[408370301,1773511847936,-834.10194058,0.00016759,30]
[408370302,1773511847946,-2688.8737099,0.00016762,2]
[408370303,1773511847956,-2980.5667741,0.00016762,2]
[408370304,1773511847966,-165.97151188,0.00016767,5]
[408370305,1773511847977,-202.54271031,0.00016767,3]
[408370306,1773511847988,-3580.0,0.00016782,2]
[408370307,1773511847998,-3580.0,0.00016806,2]
[408370308,1773511848008,-3580.0,0.00016819,2]
[408370309,1773511848019,-3580.0,0.0001682,2]
[408370310,1773511848029,-2000.0,0.00016934,2]
[408370311,1773511848040,-2000.0,0.00016959,7]
[408370312,1773511848051,-250.0,0.00016986,2]
[408370313,1773511848062,-3500.0,0.00016986,2]
[408370314,1773511848073,-270.83333333,0.00017,7]
[408370315,1773511848083,-641.03786511,0.00017,2]
[408370316,1773511848095,-300.0,0.00017,5]
[408370317,1773511848106,-834.10194058,0.00017181,30]
[408370318,1773511848117,-1820.2,0.00017208,2]
[408370319,1773511848127,-3285.0,0.00017299,2]
[408370320,1773511848138,-12959.0,0.00017299,2]
[408370321,1773511848149,-151.0,0.000174,2]
[408370322,1773511848158,-2500.0,0.00017482,2]
[408370323,1773511848168,-350.0,0.00017534,2]
[408370324,1773511848178,-4000.0,0.00017534,2]
[408370325,1773511848187,-834.10194058,0.00017604,30]
[408370326,1773511848198,-574.0,0.00017629,2]
[408370327,1773511848209,-223.0,0.00017863,3]
[408370328,1773511848218,-158.82039658,0.00017972,60]
[408370329,1773511848228,-172.1700628,0.00017972,60]
[408370330,1773511848238,-1820.2,0.00017977,2]
[408370331,1773511848248,-300.0,0.00018,5]
[408370332,1773511848259,-834.10194058,0.00018026,30]
[408370333,1773511848269,-3000.0,0.0001803,2]
[408370334,1773511848281,-5703.86032085,0.00018077,3]
[408370335,1773511848293,-450.0,0.00018082,2]
[408370336,1773511848303,-4500.0,0.00018082,2]
[408370337,1773511848312,-151.0,0.000182,2]
[408370338,1773511848323,-1000.0,0.00018226,2]
[408370339,1773511848333,-834.10194058,0.00018449,30]
[408370340,1773511848342,-192.245018,0.00018493,2]
[408370341,1773511848354,-2255.40368908,0.00018578,2]
[408370342,1773511848363,-662.4825346,0.0001863,2]
[408370343,1773511848373,-5000.0,0.0001863,2]
[408370344,1773511848382,-1820.2,0.00018746,2]
[408370345,1773511848392,-5000.0,0.00018768,2]
[408370346,1773511848401,-505.33339219,0.00018788,60]
[408370347,1773511848411,-44781.39978046,0.0001881,2]
[408370348,1773511848420,-834.10194058,0.00018871,60]
[408370349,1773511848430,-212505.19527089,0.00019,3]
[408370350,1773511848441,-270.83333333,0.00019,3]
[408370351,1773511848453,-359.0,0.00019008,2]
[408370352,1773511848463,-524.33807382,0.00019125,2]
[408370353,1773511848474,-505.33339219,0.0001917,60]
[408370354,1773511848484,-151.0,0.00019178,2]
[408370355,1773511848493,-151.0,0.00019178,2]
[408370356,1773511848503,-151.0,0.00019178,2]
[408370357,1773511848513,-151.0,0.00019178,2]
[408370358,1773511848527,-151.0,0.00019178,2]
[408370359,1773511848538,-151.0,0.00019178,2]
[408370360,1773511848550,-151.0,0.00019178,2]
[408370361,1773511848561,-151.0,0.00019178,2]
[408370362,1773511848571,-151.0,0.00019178,2]
[408370363,1773511848582,-151.0,0.00019178,2]
[408370364,1773511848592,-151.0,0.00019178,2]
[408370365,1773511848602,-151.0,0.00019178,2]
[408370366,1773511848611,-151.0,0.00019178,2]
[408370367,1773511848621,-151.0,0.00019178,2]
[408370368,1773511848631,-151.0,0.00019178,2]
[408370369,1773511848642,-151.0,0.00019178,2]
[408370370,1773511848653,-245.225896,0.00019178,2]
[408370371,1773511848665,-5500.0,0.00019178,2]
[408370372,1773511848676,-454.0,0.00019208,2]
[408370373,1773511848688,-834.10194058,0.00019294,60]
[408370374,1773511848699,-151.0,0.00019383,2]
[408370375,1773511848708,-158.0,0.0001943,2]
[408370376,1773511848720,-225.0,0.00019507,3]
[408370377,1773511848730,-1820.2,0.00019515,2]
[408370378,1773511848741,-161.0,0.00019519,7]
[408370379,1773511848751,-191.0,0.00019519,7]
[408370380,1773511848761,-172.0,0.00019519,7]
[408370381,1773511848771,-253.0,0.00019519,7]
[408370382,1773511848782,-158.82039658,0.00019526,60]
[408370383,1773511848795,-172.1700628,0.00019526,60]
[408370384,1773511848806,-505.33339219,0.00019552,60]
[408370385,1773511848818,-270.83333333,0.000196,3]
[408370386,1773511848829,-265.0,0.00019601,2]
[408370387,1773511848839,-263.0,0.00019601,2]
[408370388,1773511848852,-5072.15702467,0.00019602,80]
[408370389,1773511848864,-154.0,0.00019617,7]
[408370390,1773511848875,-150.0,0.00019617,7]
[408370391,1773511848895,-150.0,0.00019617,7]
[408370392,1773511848908,-248.0,0.00019617,7]
[408370393,1773511848921,-274.0,0.00019617,7]
[408370394,1773511848932,-834.10194058,0.00019716,60]
[408370395,1773511848944,-6000.0,0.00019726,2]
[408370396,1773511848954,-1456.530769,0.0001976,5]
[408370397,1773511848965,-1000.0,0.0001978,5]
[408370398,1773511848976,-1000.0,0.000198,5]
[408370399,1773511848987,-726213.16730763,0.000198,4]
[408370400,1773511849614,-21153.60152014,0.000198,4]
[408370401,1773511849626,-258.58443364,0.000198,4]
[408370402,1773511849638,-18720.71606853,0.000198,4]
[408370403,1773511866134,151.0,0.000102,120]
[408370404,1773511904735,151.0,0.000102,120]
[408370405,1773511936904,151.0,0.000102,120]
[408370406,1773511984307,151.0,0.000102,120]
[408370408,1773512024364,151.0,0.000102,120]
[408370419,1773512066734,151.0,0.000102,120]
[408370423,1773512105480,151.0,0.000102,120]
[408370424,1773512135930,151.0,0.000102,120]
[408370425,1773512166862,151.0,0.000102,120]
[408370426,1773512205133,151.0,0.000102,120]
[408370427,1773512247206,151.0,0.000102,120]
[408370428,1773512286083,151.0,0.000102,120]
[408370429,1773512326808,151.0,0.000102,120]
[408370430,1773512365466,151.0,0.000102,120]
[408370431,1773512406193,151.0,0.000102,120]
[408370432,1773512444680,151.0,0.000102,120]
[408370433,1773512484444,151.0,0.000102,120]
[408370434,1773512525451,151.0,0.000102,120]
[408370435,1773512565493,151.0,0.000102,120]
[408370463,1773513031876,-5000.0,9.868e-05,2]
[408370465,1773513031886,-1082.0,9.967e-05,2]